Cogmind - Beta 12 @@@ ROGUE MODE // 2023.09.08 @ 00:24:26 Player: Infinigon Result: Destroyed by H-77 Assassin with High-powered Shotgun Performance ------------- Evolutions (7) 3500 Regions Visited (26) 5200 Robots Destroyed (335) 1675 Value Destroyed (13551) 13551 Prototype IDs (59) 1180 Alien Tech Used (2) 400 Bonus (3974) 3974 TOTAL SCORE: 29480 Bonus ------- High Alert Combat Kills 1486 Follower Combat Kills 2115 Aligned with FarCom 300 Met Imprinter 300 Met Zhirov 300 A7 Reached Mainframe 300 Friendly Fire -827 Cogmind --------- Core Integrity 0/1300 Matter 107/300 Energy 99/100 System Corruption 22% Temperature Cool (9) Movement Core (50) Location -3/Research Parts ------- > --- POWER (2) -------- (None) > --- PROPULSION (6) --- (None) > --- UTILITY (11) ----- (None) > --- WEAPON (2) ------- (None) > --- INVENTORY (5) ---- Improved Heavy Treads Armored Heavy Treads Advanced Coolant Injector Peak State ------------ > --- POWER ------------ Light Fission Core Quantum Reactor > --- PROPULSION ------- Centrium Heavy Treads Centrium Heavy Treads Centrium Heavy Treads > --- UTILITY ---------- Improved Cooling System Cargo Storage Unit Enhanced Optical Array Centrium Medium Armor Plating Centrium Medium Armor Plating Improved System Shield > --- WEAPON ----------- Coil Gun Advanced KE Penetrator > --- INVENTORY -------- Improved Treads Improved Treads Improved Treads Improved Treads Improved Treads High-capacity Matter Pod Improved Heavy Armor Plating Improved Heavy Armor Plating Centrium Medium Armor Plating Medium Reactive Plating Medium Reactive Plating Heavy Reflective Plating Heavy Reflective Plating Hacking Suite Long-range Tractor Beam Phasing AFG Advanced Variable Charge Gun Heavy Plasma Cannon Advanced Plasma Cannon Heavy Machine Gun Magnetic Acceleration Cannon Mini Grenade Launcher Long-range Missile Launcher Field Lobotomy Kit Molecular Deconstructor [Rating: 130] Favorites ----------- Power Light Nuclear Core Engine Light Ion Engine Power Core Light Nuclear Core Reactor Quantum Reactor Propulsion Medium Treads Treads Medium Treads Leg Advanced Myomer Leg Wheel Wheel Hover Unit Improved Linear Gravjet Flight Unit Impulse Thruster Utility High-capacity Storage Unit Device Improved Cooling System Storage High-capacity Storage Unit Processor Advanced Visual Processing Unit Hackware Advanced System Shield Protection Hardened Heavy Armor Plating Weapon Gauss Rifle Energy Gun Heavy Beamcaster Energy Cannon Heavy Plasma Cannon Ballistic Gun Gauss Rifle Ballistic Cannon Light Cannon Launcher Mini Grenade Launcher Special Weapon Mining Laser Impact Weapon Heavy Flail Slashing Weapon Axe Piercing Weapon Force Lance Build | -11 -10 -10 -10 -9 -8 -7 -7 -7 -7 -7 -7 -6 -6 -6 -6 -6 -6 -5 -5 -5 -5 -4 -4 -4 -4 -3 ------- Run | Jun Mat Min Exi Min Mat Fac Was Fac Low Low Zio Pro Fac Ext Cet Arc Hub Fac Upp Upp Zhi Pro Fac Was Fac Res Slots Evolved 14 | . . . . . 4 2 . . . . . . 2 . . . . 2 . . . . 2 . . 2 Power 1 | . . . . . . 1 . . . . . . . . . . . . . . . . . . . . Propulsion 4 | . . . . . 2 . . . . . . . 1 . . . . 1 . . . . . . . . Utility 9 | . . . . . 2 1 . . . . . . 1 . . . . 1 . . . . 2 . . 2 Weapon . | . . . . . . . . . . . . . . . . . . . . . . . . . . . Parts Attached 515 | 7 9 7 . 2 36 3 22 19 8 3 4 14 30 46 17 16 12 101 15 7 14 3 49 . 39 32 Power 46 | 1 2 1 . . 5 . 3 1 1 1 1 . 6 3 2 1 . 8 1 . 3 . 4 . 1 1 Engine 9 | 1 2 1 . . 1 . . . . . 1 . 2 1 . . . . . . . . . . . . Core 32 | . . . . . 4 . 3 1 1 1 . . 4 1 . 1 . 8 1 . 1 . 4 . 1 1 Reactor 5 | . . . . . . . . . . . . . . 1 2 . . . . . 2 . . . . . Propulsion 128 | 3 3 2 . . 14 1 6 1 1 . . 2 6 10 2 2 1 12 1 1 4 1 24 . 16 15 Treads 64 | . 1 . . . 14 1 4 1 1 . . 2 6 10 2 2 1 12 1 . 1 1 1 . . 3 Leg 11 | 1 1 . . . . . . . . . . . . . . . . . . 1 3 . 5 . . . Wheel 9 | 2 1 2 . . . . . . . . . . . . . . . . . . . . 4 . . . Hover 21 | . . . . . . . . . . . . . . . . . . . . . . . 14 . 6 1 Flight 23 | . . . . . . . 2 . . . . . . . . . . . . . . . . . 10 11 Utility 165 | 1 3 . . . 9 2 8 10 2 . 2 2 10 10 3 7 9 38 5 4 7 1 15 . 7 10 Device 54 | 1 . . . . 2 1 1 3 1 . 1 1 4 2 1 5 . 14 1 1 4 . 5 . 3 3 Storage 10 | . 1 . . . . . 1 . . . . . 1 1 . . . 1 . . . . 3 . . 2 Processor 13 | . . . . . . 1 1 2 . . . . 3 1 . . . . 1 1 . . 2 . 1 . Hackware 18 | . . . . . . . . 3 . . . . . 2 . . 4 2 . 1 1 . . . 1 4 Protection 70 | . 2 . . . 7 . 5 2 1 . 1 1 2 4 2 2 5 21 3 1 2 1 5 . 2 1 Artifact . | . . . . . . . . . . . . . . . . . . . . . . . . . . . Weapon 176 | 2 1 4 . 2 8 . 5 7 4 2 1 10 8 23 10 6 2 43 8 2 . 1 6 . 15 6 Energy Gun 25 | . . . . . 2 . 2 4 1 . . . 4 3 1 . . 5 2 . . . 1 . . . Energy Cannon 20 | . . . . . . . . . . . . 1 3 4 . . . 7 2 . . . . . 2 1 Ballistic Gun 57 | 2 . 1 . . 3 . 1 3 1 1 1 3 1 6 5 6 1 15 . . . . 3 . 4 . Ballistic Cannon 16 | . 1 1 . 1 1 . . . 1 1 . 2 . 3 . . . 3 . . . . . . 2 . Launcher 34 | . . 1 . 1 2 . . . 1 . . 3 . 4 2 . 1 6 4 1 . 1 . . 4 3 Special Weapon 7 | . . 1 . . . . 1 . . . . 1 . 1 . . . 2 . . . . . . . 1 Impact Weapon 4 | . . . . . . . . . . . . . . 2 2 . . . . . . . . . . . Slashing Weapon 12 | . . . . . . . 1 . . . . . . . . . . 5 . 1 . . 2 . 2 1 Piercing Weapon 1 | . . . . . . . . . . . . . . . . . . . . . . . . . 1 . Special Melee Weapon . | . . . . . . . . . . . . . . . . . . . . . . . . . . . Unidentified Prototypes 24 | . . . . . 2 . 1 2 . . 1 1 . . 4 1 . 1 . . 5 . 2 . 2 2 Corrupted Parts 6 | . . . . . . . . . . . . . . . 3 1 1 . . . . . 1 . . . System Corruption 30 | . . . . . . . . . . . . . . . 13 13 1 . . . . . 3 . . . Parts Lost 78 | . 1 . . . . . 1 1 2 1 . 1 . 6 . . . 16 7 6 . 1 5 . 2 28 Power 10 | . . . . . . . . . 1 1 . 1 . 1 . . . 1 1 1 . . 1 . . 2 Propulsion 29 | . 1 . . . . . . . . . . . . 1 . . . 4 4 2 . 1 1 . 2 13 Utility 26 | . . . . . . . . 1 1 . . . . 2 . . . 7 2 2 . . 3 . . 8 Weapon 13 | . . . . . . . 1 . . . . . . 2 . . . 4 . 1 . . . . . 5 Highest Loss Streak 18 | . 1 . . . . . 1 1 2 1 . 1 . 2 . . . 5 5 3 . 1 3 . 2 18 To Critical Strikes 1 | . . . . . . . . . . . . . . 1 . . . . . . . . . . . . Average Slot Usage (%) 86 | . 99 100 100 100 100 91 72 94 89 83 84 86 92 87 70 76 80 74 62 45 57 80 91 100 94 73 Engine 2 | . 14 14 14 14 . . 3 . . . 3 7 4 2 . . . . . . . . . . . . Core 6 | . . . . . 8 7 8 15 12 6 7 2 7 7 1 4 6 9 8 6 . . 5 10 9 3 Reactor 1 | . . . . . . . . . . . . . . 2 5 6 6 1 . . 5 11 3 . . . Treads 20 | . . . . . 34 30 20 30 30 30 30 29 33 33 22 20 20 20 11 4 2 3 . . . . Leg 1 | . 14 . . . . . . . . . . . . . . . . . . 2 11 17 10 . . . Wheel 2 | . 13 27 28 28 1 . . . . . . . . . . . . . . . . . 2 . . . Hover 1 | . . . . . . . . . . . . . . . . . . . . . . . 13 31 18 1 Device 5 | . 1 . . . 5 14 4 4 2 7 . 5 5 5 5 10 6 5 5 2 5 11 8 10 10 10 Storage 6 | . 12 14 14 14 9 7 5 7 7 7 7 7 6 6 6 6 6 5 5 2 . . 4 5 5 3 Processor 6 | . . . . . . 6 . 6 11 7 7 7 7 6 6 6 6 4 3 7 11 11 12 15 15 9 Hackware 2 | . . . . . . . . 4 . . . . . 4 . . 5 2 . 1 9 11 10 10 10 16 Protection 9 | . 13 14 14 14 21 7 14 8 7 7 10 8 11 4 12 7 7 10 12 4 3 5 7 5 4 2 Energy Gun 2 | . . . . . 7 7 5 7 6 . . . 4 2 . . . . 4 2 . . . . . . Ballistic Gun 6 | . 14 4 14 14 9 7 4 7 6 6 13 8 6 3 6 12 12 6 . . . . 2 5 2 . Ballistic Cannon 2 | . 13 14 14 12 1 . . . . 6 1 5 1 1 . . . 1 . . . . . . . . Naked Turns 40 | . . . . . . . 38 . . . . . . . . . . . . . . . . . . 2 Heaviest Build 216 | 7 51 51 51 52 68 62 83 99 80 79 80 83 116 209 207 207 207 216 204 197 39 45 56 34 40 38 Greatest Support 240 | 20 10 20 20 20 82 90 90 92 93 93 93 103 144 126 182 183 183 240 172 160 90 90 138 62 62 180 Greatest Overweight (x) 5 | . 5 5 2 2 2 . 1 1 . . . . . 1 1 1 1 1 1 2 . 1 1 . . . Average Overweight (x) . | . 3 2 2 2 . . . . . . . . . . . . . . 1 . . . . . . . Largest Inventory Capacity 30 | 5 20 20 20 20 20 20 20 20 20 20 20 20 20 30 30 30 30 30 30 30 5 5 10 10 10 15 Average Capacity 21 | 5 18 20 20 20 20 20 15 20 20 20 20 20 20 29 30 30 30 30 30 19 5 5 8 10 10 10 Most Carried 30 | 5 20 20 20 20 20 20 20 20 20 18 20 20 20 30 30 30 30 30 25 22 5 5 10 10 10 15 Average Carried 20 | 2 15 19 19 20 19 19 14 19 19 17 19 19 19 28 29 29 28 28 21 14 4 4 8 10 9 9 Final Capacity 30 | 5 20 20 20 20 20 20 20 20 20 20 20 20 20 30 30 30 30 30 30 5 5 5 10 10 10 5 Final Carried 30 | 5 20 20 20 20 20 20 20 20 17 18 20 20 20 28 30 30 26 25 21 5 5 5 10 10 10 5 Class Distribution -------------------- 45% | Mutant 30% | Scavenger-Mutant 11% | Hauler-Mutant 5% | Hacker-Sprinter Dominant Class ---------------- Mutant | -10/Materials Mutant | -10/Mines Mutant | -10/Exiles Mutant | -9/Mines Scavenger-Mutant | -8/Materials Skirmisher | -7/Factory Mutant | -7/Waste Mutant | -7/Factory Mutant | -7/Lower Caves Mutant | -7/Lower Caves Mutant | -7/Zion Mutant | -6/Proximity Caves Mutant | -6/Factory Hauler-Mutant | -6/Extension Hauler-Mutant | -6/Cetus Scavenger-Mutant | -6/Archives Scavenger-Mutant | -6/Hub_04(d) Scavenger-Mutant | -5/Factory Scavenger-Mutant | -5/Upper Caves Mutant | -5/Upper Caves Hacker-Mutant | -5/Zhirov Hacker-Mutant | -4/Proximity Caves Scavenger-Assassin | -4/Factory Scavenger-Sprinter | -4/Waste Hacker-Sprinter | -4/Factory Hacker-Sprinter | -3/Research Resources | -11 -10 -10 -10 -9 -8 -7 -7 -7 -7 -7 -7 -6 -6 -6 -6 -6 -6 -5 -5 -5 -5 -4 -4 -4 -4 -3 ----------- Run | Jun Mat Min Exi Min Mat Fac Was Fac Low Low Zio Pro Fac Ext Cet Arc Hub Fac Upp Upp Zhi Pro Fac Was Fac Res Matter Collected 11518 | 326 653 231 . . 780 30 230 441 353 145 72 369 821 1180 466 598 345 2575 376 143 155 90 641 . 349 149 Remotely 822 | . . . . . . . . . . . . . . . . . . 520 . . 150 90 62 . . . Salvage Created 16021 | 101 651 75 . . 887 . . 681 870 128 . 678 1154 2087 426 598 251 3253 307 376 458 298 1940 . 533 269 Parts 761 | 11 37 3 . . 51 . . 33 35 4 . 23 57 73 21 32 24 176 6 21 6 10 88 . 35 15 Haulers Intercepted 4 | . 2 . . . 2 . . . . . . . . . . . . . . . . . . . . . Recyclers Shooed 23 | . 2 . . . 3 . . 1 . . . . 1 3 . . 1 7 . . . . 3 . 2 . Parts Field Recycled 13 | . . . . . . . . . . . . . . . . . . 13 . . . . . . . . Retrieved Matter 296 | . . . . . . . . . . . . . . . . . . 296 . . . . . . . . Parts Self-Destructed 86 | . . . . . . . . . 31 3 . 21 . . . . . . 5 18 2 6 . . . . Prevented . | . . . . . . . . . . . . . . . . . . . . . . . . . . . Kills | -11 -10 -10 -10 -9 -8 -7 -7 -7 -7 -7 -7 -6 -6 -6 -6 -6 -6 -5 -5 -5 -5 -4 -4 -4 -4 -3 ------- Run | Jun Mat Min Exi Min Mat Fac Was Fac Low Low Zio Pro Fac Ext Cet Arc Hub Fac Upp Upp Zhi Pro Fac Was Fac Res Combat Hostiles Destroyed 240 | 1 12 6 . . 16 . . 11 23 3 . 16 10 21 7 4 6 53 9 10 . 3 11 . 10 8 Melee 14 | . . . . . . . . . . . . . . . . . . 2 . . . 3 7 . 2 . Guns 110 | 1 6 . . . 12 . . 10 10 1 . 5 9 9 2 4 2 32 2 2 . . 3 . . . Cannons 35 | . 6 4 . . 1 . . . 1 2 . 3 1 7 . . . 8 . 2 . . . . . . AOE 75 | . . 2 . . 3 . . . 12 . . 8 . 4 5 . 4 9 7 5 . . . . 8 8 Classes Destroyed 22 | 3 3 2 . . 5 . . 1 1 1 . 2 1 . . . . . 1 . . 2 . . . . Worker 18 | 1 . 1 . . . . . . . . . . 1 . . . . 9 . . . . 6 . . . Builder 9 | . . . . . 1 . . 1 . . . . . . . . 1 6 . . . . . . . . Tunneler 4 | 1 1 . . . . . . . . . . . . . . . 1 1 . . . . . . . . Hauler 4 | . 2 . . . 2 . . . . . . . . . . . . . . . . . . . . . Recycler 28 | . 1 . . . 2 . . 1 . . . . 4 6 . . 1 1 . . . . 8 . 3 1 Minesweeper 1 | . . . . . . . . . . . . . . . . . . . 1 . . . . . . . Mechanic 1 | . . . . . . . . . . . . . 1 . . . . . . . . . . . . . Operator 11 | . . . . . 1 . . . . . . . 1 1 . 8 . . . . . . . . . . Drone 1 | . . . . . . . . . . . . . . . . . . . . . . 1 . . . . Watcher 21 | . 2 . . . . . . 2 . . . . 4 2 1 . . 7 . . . . 2 . 1 . Swarmer 48 | . . . . . 3 . . . 9 . . 2 2 . 3 . 4 6 . 5 . . . . 8 6 Grunt 77 | 1 12 . . . 7 . . 5 10 2 . 3 . 12 2 . 1 14 8 . . . . . . . Brawler 7 | . . . . . . . . . . . . 5 . . . . . 1 1 . . . . . . . Duelist 5 | . . . . . . . . . . 1 . 3 . . . . . 1 . . . . . . . . Protector 2 | . . . . . . . . . . . . 1 . . . . . 1 . . . . . . . . Sentry 31 | . . . . . 5 . . 1 1 . . 1 3 6 . 4 1 7 . . . 1 1 . . . Demolisher 1 | . . . . . . . . . . . . . . . . . . . . . . 1 . . . . Hunter 12 | . . . . . 1 . . 2 . . . . 2 2 . . . 3 . . . . 2 . . . Programmer 44 | . . . . . . . . 2 2 . . . 3 . 1 . . 20 . 4 . . 8 . 2 2 Behemoth 4 | . . . . . . . . . 1 . . 1 . 1 . . . . . 1 . . . . . . Cetus Guard 1 | . . . . . . . . . . . . . . . 1 . . . . . . . . . . . Zionite 1 | . . 1 . . . . . . . . . . . . . . . . . . . . . . . . Packrat 1 | . . . . . . . . . . . . . . . . . . . 1 . . . . . . . Assembled 6 | . . 6 . . . . . . . . . . . . . . . . . . . . . . . . Thug 1 | . . . . . . . . 1 . . . . . . . . . . . . . . . . . . Savage 3 | . . . . . . . . . . . . . . . 3 . . . . . . . . . . . Best Kill Streak 16 | 2 3 4 . . 4 . . 4 12 3 . 12 3 4 4 2 8 16 5 5 . 1 3 . 5 8 Combat Bots Only 12 | 1 3 3 . . 4 . . 2 12 3 . 12 2 4 4 1 5 5 5 5 . 1 2 . 5 8 Max Kills in Single Turn 5 | 1 1 2 . . 3 . . 1 5 1 . 3 2 4 3 1 4 4 3 4 . 1 1 . 3 4 Gunslinging 1 | . . . . . . . . . . . . . 1 . . . . . . . . . . . . . Exploded 5 | . . 1 . . 3 . . . 5 . . 3 . 4 3 . 2 3 3 4 . . . . 3 4 Melee 1 | . . . . . . . . . . . . . . . . . . 1 . . . 1 1 . 1 . Uniques/NPCs Destroyed . | . . . . . . . . . . . . . . . . . . . . . . . . . . . Combat | -11 -10 -10 -10 -9 -8 -7 -7 -7 -7 -7 -7 -6 -6 -6 -6 -6 -6 -5 -5 -5 -5 -4 -4 -4 -4 -3 -------- Run | Jun Mat Min Exi Min Mat Fac Was Fac Low Low Zio Pro Fac Ext Cet Arc Hub Fac Upp Upp Zhi Pro Fac Was Fac Res Damage Taken 30072 | 65 293 128 . . 776 . 58 485 1726 780 . 1530 1381 3114 565 440 404 7260 922 788 . 502 1758 . 541 6556 Core 2989 | 22 35 . . . 48 . 58 5 125 122 . 96 129 152 12 48 . 291 77 194 . 65 191 . 16 1303 Absorbed by Shields 633 | . . . . . . . . . . . . . . 58 71 . . 504 . . . . . . . . Reduced by Siege Mode 508 | . . . . . . . . . . . . . . . . . . 92 19 36 . . . . . 361 Redirected to Shielding 327 | . 7 . . . 8 . . . . . . . . . . . . . . . . 147 . . . 165 Regen/Repaired (Parts) 3756 | . . . . . 47 . . 90 553 282 905 42 426 . . . . 1261 . . . . . . 150 . Core Remaining (%) 67 | 91 . . . 77 91 . . . . . . 42 . . . . 59 . . . . 37 . . 77 . Volleys Fired 972 | 10 70 20 . . 95 . . 59 67 17 8 30 102 122 22 64 11 208 17 18 . . 20 . 6 6 Largest 2 | 2 2 2 . . 2 . . 2 2 2 1 2 2 2 2 2 2 2 2 2 . . 2 . 2 2 Hottest 330 | 40 55 100 . . 75 . . 109 109 109 28 87 109 171 65 65 65 170 330 170 . . 93 . 92 92 Shots Fired 1743 | 20 112 37 . . 188 . . 113 99 33 8 52 180 226 38 126 20 365 38 32 . . 40 . 8 8 Gun 1358 | 20 70 17 . . 176 . . 113 90 25 8 30 148 161 34 126 17 258 12 13 . . 40 . . . Cannon 314 | . 42 17 . . 11 . . . 5 8 . 14 32 62 . . . 91 14 17 . . . . 1 . Launcher 62 | . . 2 . . 1 . . . 4 . . 8 . 2 4 . 3 12 12 2 . . . . 7 5 Special 9 | . . 1 . . . . . . . . . . . 1 . . . 4 . . . . . . . 3 Kinetic 1139 | 20 112 34 . . 105 . . 54 57 24 8 44 100 100 34 126 17 273 . . . . 31 . . . Thermal 524 | . . 1 . . 82 . . 59 38 9 . . 80 123 . . . 76 26 30 . . . . . . Explosive 62 | . . 2 . . 1 . . . 4 . . 8 . 2 4 . 3 12 12 2 . . . . 7 5 Electromagnetic 10 | . . . . . . . . . . . . . . . . . . . . . . . 9 . 1 . Robot Hit Streak 18 | 4 15 3 . . 10 . . 7 8 9 . 17 15 12 5 9 6 18 13 8 . . 13 . 2 2 Robot Miss Streak 8 | 2 5 8 . . 5 . . 6 2 1 . 2 4 6 2 5 2 2 1 3 . . 2 . 2 1 Penetration Max 1 | . . . . . . . . 1 . . . . 1 1 1 1 . 1 . . . . 1 . . . Secondary Targets 7 | . . . . . . . . . . . . . 1 . . . . 5 . . . . 1 . . . Max Gunslinging Chain 1 | . . . . . . . . . . . . . 1 . . . . 1 . . . . 1 . . . Shots Hit Robots 1195 | 11 69 12 . . 119 . . 71 62 24 . 36 108 140 23 78 12 259 21 20 7 11 76 . 21 15 Core Hits 692 | 5 30 9 . . 48 . . 29 53 6 . 43 39 75 26 26 18 154 26 12 6 7 34 . 17 29 Critical Kills 16 | . . . . . 1 . . . . . . 1 1 2 . 5 1 3 . 1 . . 1 . . . Critical Parts Destroyed 18 | . . . . . . . . . . . . . 1 . 1 6 . 9 . . . . 1 . . . Critical Strikes 71 | . . . . . 7 . . 8 3 2 . 3 5 6 1 12 1 14 . 1 . 1 5 . 1 1 Burn 22 | . . . . . 6 . . 7 3 1 . . 3 2 . . . . . . . . . . . . Meltdown 2 | . . . . . . . . . . . . . . 1 . . . . . 1 . . . . . . Destroy 34 | . . . . . 1 . . 1 . . . 1 2 1 1 12 1 12 . . . . 2 . . . Blast 6 | . . . . . . . . . . 1 . 2 . 2 . . . 1 . . . . . . . . Sever 7 | . . . . . . . . . . . . . . . . . . 1 . . . 1 3 . 1 1 Melee Attacks 185 | . . . . . . . . . . . . . . 12 3 . . 12 . . 7 15 78 . 41 17 Impact 15 | . . . . . . . . . . . . . . 12 3 . . . . . . . . . . . Slashing 170 | . . . . . . . . . . . . . . . . . . 12 . . 7 15 78 . 41 17 Piercing . | . . . . . . . . . . . . . . . . . . . . . . . . . . . Sneak Attacks 26 | . . . . . . . . . . . . . . . . . . 2 . . . 1 16 . 6 1 Combat Hostiles 2 | . . . . . . . . . . . . . . . . . . . . . . 1 1 . . . Follow-up Attacks 8 | . . . . . . . . . . . . . . . . . . 2 . . . . 4 . . 2 Damage Inflicted 41137 | 108 1045 304 . . 1945 . . 1640 2473 568 . 1971 2492 3715 1384 1911 788 9538 2083 1184 621 599 3478 . 1504 1786 Guns 20191 | 108 547 62 . . 1627 . . 1640 1308 397 . 427 2129 2211 669 1911 228 5520 241 346 . . 820 . . . Cannons 4788 | . 498 147 . . 110 . . . 162 171 . 319 348 1051 . . . 1405 192 385 . . . . . . Explosions 9925 | . . 95 . . 162 . . . 1003 . . 1225 . 345 715 . 552 1813 1633 453 . . . . 628 1301 Melee 5744 | . . . . . . . . . . . . . . . . . . 505 . . 621 599 2658 . 876 485 Ramming 489 | . . . . . 46 . . . . . . . 15 108 . . 8 295 17 . . . . . . . Kinetic 16857 | 108 1045 209 . . 1095 . . 677 732 432 . 746 1453 1254 669 1911 228 5622 . . . . 676 . . . Thermal 7978 | . . . . . 642 . . 963 738 136 . . 1024 2008 . . . 1303 433 731 . . . . . . Explosive 9691 | . . 95 . . 162 . . . 1003 . . 1225 . 345 715 . 552 1579 1633 453 . . . . 628 1301 Electromagnetic 378 | . . . . . . . . . . . . . . . . . . 234 . . . . 144 . . . Impact . | . . . . . . . . . . . . . . . . . . . . . . . . . . . Slashing 5744 | . . . . . . . . . . . . . . . . . . 505 . . 621 599 2658 . 876 485 Piercing . | . . . . . . . . . . . . . . . . . . . . . . . . . . . Highest Corruption 31 | . . . . . . . . . . . . . 9 14 27 27 11 26 26 31 31 31 7 9 10 22 Average Corruption 13 | . . . . . . . . . . . . . 5 13 24 13 9 10 26 28 31 31 4 6 9 7 Corruption Purged 31 | . . . . . . . . . . . . . . . . 31 . . . . . . . . . . Corruption Blocked . | . . . . . . . . . . . . . . . . . . . . . . . . . . . Effects 598 | . . . . . . . . . . . . . 49 182 21 43 13 140 52 17 10 26 15 . 20 10 Message Errors 146 | . . . . . . . . . . . . . 13 46 8 5 . 35 11 5 3 7 3 . 10 . Matter Fused 132 | . . . . . . . . . . . . . 6 44 4 6 4 25 17 3 2 7 4 . 6 4 Heat Flow Errors 76 | . . . . . . . . . . . . . 10 24 . 4 . 18 6 2 2 5 1 . 3 1 Energy Discharges 64 | . . . . . . . . . . . . . 7 21 2 4 2 17 6 1 1 2 . . . 1 Parts Rejected 6 | . . . . . . . . . . . . . 1 . 1 . . 3 1 . . . . . . . Parts Fused 4 | . . . . . . . . . . . . . . 2 1 1 . . . . . . . . . . Data Loss (minor) 66 | . . . . . . . . . . . . . 7 15 2 9 4 16 3 3 2 1 4 . . . Data Loss (major) 32 | . . . . . . . . . . . . . 1 10 1 5 1 6 1 2 . 3 1 . 1 . Misfires 27 | . . . . . . . . . . . . . 2 8 1 3 1 5 5 1 . . 1 . . . Alerts 19 | . . . . . . . . . . . . . 2 7 1 1 1 4 1 . . 1 1 . . . Misdirections 5 | . . . . . . . . . . . . . . . . . . 1 . . . . . . . 4 Weapon Failures 21 | . . . . . . . . . . . . . . 5 . 5 . 10 1 . . . . . . . Overload Shots 1 | . . . . . . . . . . . . . . . . . . . 1 . . . . . . . Overflow Damage 843 | . . 12 . . . . . . . . . 31 8 17 . . . 70 79 72 65 56 288 . 74 71 Projectiles 80 | . . 12 . . . . . . . . . . 8 3 . . . 11 . 46 . . . . . . Explosions 162 | . . . . . . . . . . . . 31 . . . . . 10 76 26 . . . . 2 17 Melee 601 | . . . . . . . . . . . . . . 14 . . . 49 3 . 65 56 288 . 72 54 Knockbacks 30 | . 9 1 . . 3 . . . . 3 . . . 2 . . . 12 . . . . . . . . Impact 6 | . . . . . 1 . . . . . . . . 2 . . . 3 . . . . . . . . Kinetic 24 | . 9 1 . . 2 . . . . 3 . . . . . . . 9 . . . . . . . . Secondary . | . . . . . . . . . . . . . . . . . . . . . . . . . . . Self-Inflicted Damage 817 | . . . . . . . . . . . . 184 . . 18 . . 174 233 65 . . . . 59 84 Shots 24 | . . . . . . . . . . . . 6 . . 1 . . 6 5 2 . . . . 1 3 Rammed 32 | . . . . . 5 . . . . . . . 2 4 . . 2 18 1 . . . . . . . Targets Rammed 32 | . . . . . 5 . . . . . . . 2 4 . . 2 18 1 . . . . . . . Kicked . | . . . . . . . . . . . . . . . . . . . . . . . . . . . Crushed . | . . . . . . . . . . . . . . . . . . . . . . . . . . . Highest Temperature 497 | 12 24 32 . . 304 . . 320 370 178 . 346 340 497 331 190 . 385 428 316 106 236 254 94 198 188 Average Temperature 91 | 7 7 8 . . 40 . . 98 137 99 . 108 84 96 128 91 . 112 104 157 57 103 58 43 70 109 Received Heat Transfer 5061 | 36 162 20 . . 360 . . 45 345 315 . 321 180 768 117 108 57 1366 273 48 . 36 . . . 504 Effects 32 | . . . . . . . . 2 6 . . 2 2 3 1 . . 14 1 1 . . . . . . Shutdowns 7 | . . . . . . . . . 2 . . . 1 2 . . . 2 . . . . . . . . Energy Bleed 11 | . . . . . . . . . 1 . . . 1 . 1 . . 7 . 1 . . . . . . Interference 11 | . . . . . . . . 2 2 . . 2 . 1 . . . 4 . . . . . . . . Matter Decay 1 | . . . . . . . . . . . . . . . . . . . 1 . . . . . . . Damage (minor) 2 | . . . . . . . . . 1 . . . . . . . . 1 . . . . . . . . Siege Activations 9 | . . . . . . . . . . . . . . . . . . 5 2 1 . . . . . 1 Total Turns 215 | . . . . . . . . . . . . . . . . . . 139 41 15 . . . . . 20 Longest Duration 43 | . . . . . . . . . . . . . . . . . . 43 22 15 . . . . . 20 Robots Corrupted 1 | . . . . . . . . . . . . . . . . . . . . . . . 1 . . . Combat Hostiles 1 | . . . . . . . . . . . . . . . . . . . . . . . 1 . . . Parts Fried 4 | . . . . . . . . . . . . . . 2 . . . 2 . . . . . . . . Impact Corruptions 6 | . . . . . . . . . . . . . . 3 . . . 2 1 . . . . . . . Robots Melted 4 | . . . . . . . . 1 . . . . . 1 . . . 1 . 1 . . . . . . Combat Hostiles 4 | . . . . . . . . 1 . . . . . 1 . . . 1 . 1 . . . . . . Parts Melted 29 | . . . . . 4 . . 7 1 . . . 2 5 . . . 5 1 4 . . . . . . Heat Transferred 14167 | . . . . . 2331 . . 2017 1369 296 . . 1776 3298 . . . 1614 633 833 . . . . . . Parts Sabotaged . | . . . . . . . . . . . . . . . . . . . . . . . . . . . Parts Stolen . | . . . . . . . . . . . . . . . . . . . . . . . . . . . Parts Stripped . | . . . . . . . . . . . . . . . . . . . . . . . . . . . Power Chain Reactions . | . . . . . . . . . . . . . . . . . . . . . . . . . . . Missiles Intercepted . | . . . . . . . . . . . . . . . . . . . . . . . . . . . Alert | -11 -10 -10 -10 -9 -8 -7 -7 -7 -7 -7 -7 -6 -6 -6 -6 -6 -6 -5 -5 -5 -5 -4 -4 -4 -4 -3 ------- Run | Jun Mat Min Exi Min Mat Fac Was Fac Low Low Zio Pro Fac Ext Cet Arc Hub Fac Upp Upp Zhi Pro Fac Was Fac Res Peak Influence 1611 | 30 239 39 . 37 251 118 67 707 . . . . 92 256 242 261 212 1611 . . . . 310 52 531 663 Initial 211 | . 19 38 . . 14 87 41 . . . . . . 18 67 83 . 12 . . . . 168 22 36 211 Average 211 | 5 83 11 . 28 71 94 47 460 . . . . 24 83 151 87 45 663 . . . . 111 34 296 246 Maximum Alert Level 5 | . 1 . . . 1 . . 3 . . . . . 1 1 1 1 5 . . . . 1 . 2 2 Low Security (%) 73 | 100 97 100 . 100 99 100 100 18 . . . . 100 93 54 83 87 33 . . . . 88 100 22 39 Level 1 8 | . 2 . . . . . . 14 . . . . . 6 45 16 12 1 . . . . 11 . 55 39 Level 2 10 | . . . . . . . . 59 . . . . . . . . . 22 . . . . . . 22 20 Level 3 3 | . . . . . . . . 8 . . . . . . . . . 14 . . . . . . . . Level 4 4 | . . . . . . . . . . . . . . . . . . 28 . . . . . . . . Level 5 . | . . . . . . . . . . . . . . . . . . . . . . . . . . . High Security . | . . . . . . . . . . . . . . . . . . . . . . . . . . . Max Security . | . . . . . . . . . . . . . . . . . . . . . . . . . . . Squads Dispatched 59 | . 2 . . . 3 . . 9 . . . 1 5 4 . . 1 19 . . . . 7 . 2 6 Investigation 9 | . 1 . . . 1 . . 1 . . . . . 3 . . . 3 . . . . . . . . Extermination 21 | . . . . . . . . 2 . . . . 3 . . . . 7 . . . . 5 . 1 3 Reinforcement 17 | . 1 . . . 2 . . 4 . . . . 2 1 . . 1 1 . . . . 2 . . 3 Assault 8 | . . . . . . . . 1 . . . 1 . . . . . 5 . . . . . . 1 . Garrison 4 | . . . . . . . . 1 . . . . . . . . . 3 . . . . . . . . Intercept . | . . . . . . . . . . . . . . . . . . . . . . . . . . . Searches Triggered . | . . . . . . . . . . . . . . . . . . . . . . . . . . . Construction Impeded 2 | . . . . . . . . 1 . . . . . . . . . 1 . . . . . . . . Haulers Reinforced 1 | . . . . . . . . 1 . . . . . . . . . . . . . . . . . . Active Scanning Responses . | . . . . . . . . . . . . . . . . . . . . . . . . . . . Cargo Convoy Interrupts 1 | . . . . . . . . . . . . . 1 . . . . . . . . . . . . . Stealth | -11 -10 -10 -10 -9 -8 -7 -7 -7 -7 -7 -7 -6 -6 -6 -6 -6 -6 -5 -5 -5 -5 -4 -4 -4 -4 -3 --------- Run | Jun Mat Min Exi Min Mat Fac Was Fac Low Low Zio Pro Fac Ext Cet Arc Hub Fac Upp Upp Zhi Pro Fac Was Fac Res Distress Signals 37 | . . 1 . . 4 . . 2 . . . . 1 1 1 . 1 1 . . . 14 3 . 4 4 Communications Jammed . | . . . . . . . . . . . . . . . . . . . . . . . . . . . Distress Signals . | . . . . . . . . . . . . . . . . . . . . . . . . . . . Times Spotted 463 | 1 23 8 . . 30 . 6 35 22 3 . 22 18 33 15 25 14 82 9 9 . 4 29 4 20 51 Peak Tracking Total 24 | 1 4 2 . . 4 . 6 5 13 3 . 9 3 4 5 1 7 6 5 5 . 2 6 4 6 24 Tactical Retreats 38 | . 1 2 . . 2 . . 2 . . . 1 1 3 . . 1 3 . . . . 4 . 8 10 Traps | -11 -10 -10 -10 -9 -8 -7 -7 -7 -7 -7 -7 -6 -6 -6 -6 -6 -6 -5 -5 -5 -5 -4 -4 -4 -4 -3 ------- Run | Jun Mat Min Exi Min Mat Fac Was Fac Low Low Zio Pro Fac Ext Cet Arc Hub Fac Upp Upp Zhi Pro Fac Was Fac Res Traps Triggered 28 | . . . . . 1 1 . 2 . . . . 3 5 . . . 5 . . . . 4 . 4 3 Indirectly . | . . . . . . . . . . . . . . . . . . . . . . . . . . . Trap Hack Attempts . | . . . . . . . . . . . . . . . . . . . . . . . . . . . Triggered . | . . . . . . . . . . . . . . . . . . . . . . . . . . . Disarmed . | . . . . . . . . . . . . . . . . . . . . . . . . . . . Reprogrammed 6 | . 6 . . . . . . . . . . . . . . . . . . . . . . . . . Reused . | . . . . . . . . . . . . . . . . . . . . . . . . . . . Traps Extracted . | . . . . . . . . . . . . . . . . . . . . . . . . . . . Installed . | . . . . . . . . . . . . . . . . . . . . . . . . . . . Triggered 1 | . . . . . . . . . . . . . 1 . . . . . . . . . . . . . Machines | -11 -10 -10 -10 -9 -8 -7 -7 -7 -7 -7 -7 -6 -6 -6 -6 -6 -6 -5 -5 -5 -5 -4 -4 -4 -4 -3 ---------- Run | Jun Mat Min Exi Min Mat Fac Was Fac Low Low Zio Pro Fac Ext Cet Arc Hub Fac Upp Upp Zhi Pro Fac Was Fac Res Machines Disabled 41 | . . 1 . . . . . 3 3 . . 2 2 4 5 4 2 11 . . . . 2 . 2 . Max in Single Turn 1 | . . 1 . . . . . 1 1 . . 1 1 1 1 1 1 1 . . . . 1 . 1 . Garrison Access 9 | . . . . . . . . 2 . . . . 2 . . . . 3 . . . . . . . 2 Machines Repaired . | . . . . . . . . . . . . . . . . . . . . . . . . . . . Machines Sabotaged . | . . . . . . . . . . . . . . . . . . . . . . . . . . . Overloaded Fab Kills . | . . . . . . . . . . . . . . . . . . . . . . . . . . . Hacking | -11 -10 -10 -10 -9 -8 -7 -7 -7 -7 -7 -7 -6 -6 -6 -6 -6 -6 -5 -5 -5 -5 -4 -4 -4 -4 -3 --------- Run | Jun Mat Min Exi Min Mat Fac Was Fac Low Low Zio Pro Fac Ext Cet Arc Hub Fac Upp Upp Zhi Pro Fac Was Fac Res Machines Accessed 104 | . 7 . 2 . 8 2 . 8 1 . 1 . 16 17 . 1 4 10 . . 9 . 6 . 5 7 Terminals 67 | . 7 . . . 7 2 . 5 1 . . . 8 15 . . 4 6 . . . . 5 . 4 3 Fabricators 4 | . . . . . . . . . . . . . 3 . . . . . . . . . . . . 1 Repair Stations 11 | . . . . . 1 . . 2 . . . . 3 1 . . . 2 . . . . 1 . 1 . Recycling Units 2 | . . . . . . . . . . . . . . 1 . . . . . . . . . . . 1 Scanalyzers . | . . . . . . . . . . . . . . . . . . . . . . . . . . . Garrison Access 7 | . . . . . . . . 1 . . . . 2 . . . . 2 . . . . . . . 2 Total Hacks 337 | . 22 . 3 . 19 4 . 21 3 . 5 . 30 47 . 25 9 27 . . 48 . 31 . 15 28 Successful 191 | . 6 . 3 . 8 3 . 10 3 . 5 . 13 22 . 25 2 10 . . 48 . 13 . 5 15 Failed 145 | . 15 . . . 11 1 . 11 . . . . 17 25 . . 7 17 . . . . 18 . 10 13 Catastrophic 33 | . 4 . . . 3 1 . 2 . . . . 4 4 . . 1 5 . . . . 3 . 3 3 Database Lockouts 1 | . 1 . . . . . . . . . . . . . . . . . . . . . . . . . Manual 91 | . 14 . 1 . 5 1 . 6 . . 1 1 7 14 . . 2 6 . . . . 9 . 10 14 Terminals 194 | . 22 . . . 17 4 . 15 3 . . . 12 42 . . 9 12 . . . . 26 . 13 19 Fabricators 7 | . . . . . . . . . . . . . 6 . . . . . . . . . . . . 1 Repair Stations 35 | . . . . . 2 . . 5 . . . . 10 3 . . . 8 . . . . 5 . 2 . Recycling Units 7 | . . . . . . . . . . . . . . 2 . . . . . . . . . . . 5 Scanalyzers . | . . . . . . . . . . . . . . . . . . . . . . . . . . . Garrison Access 13 | . . . . . . . . 1 . . . . 2 . . . . 7 . . . . . . . 3 Terminal Hacks 137 | . 5 . 3 . 5 2 . 5 3 . 5 . 3 15 . 25 2 2 . . 48 . 9 . 1 4 Record 78 | . . . 2 . 2 1 . 1 3 . . . 1 3 . 25 1 . . . 36 . 1 . . 2 Part Schematic 11 | . . . . . . . . . . . 5 . . 2 . . . . . . 4 . . . . . Robot Analysis 9 | . 1 . . . 1 . . 2 . . . . . 1 . . . . . . 4 . . . . . Prototype ID Bank 6 | . . . . . . . . . . . . . . 1 . . . . . . 4 . 1 . . . Open Door 3 | . . . . . . . . . . . . . . 3 . . . . . . . . . . . . Open DSF 4 | . . . . . . 1 . . . . . . 1 . . . . 1 . . . . 1 . . . Level Access Points 1 | . . . . . . . . . . . . . . . . . 1 . . . . . . . . . Branch Access Points 4 | . . . . . 1 . . . . . . . . . . . . 1 . . . . 1 . . 1 Terminal Index 1 | . . . . . . . . . . . . . . . . . . . . . . . 1 . . . Unreport Threat 9 | . . . . . 1 . . 1 . . . . . 3 . . . . . . . . 2 . 1 1 Locate Traps 3 | . 2 . . . . . . . . . . . 1 . . . . . . . . . . . . . Reprogram Traps 1 | . 1 . . . . . . . . . . . . . . . . . . . . . . . . . Security Status 1 | . . . . . . . . . . . . . . 1 . . . . . . . . . . . . Recall Investigation 1 | . . . . . . . . . . . . . . 1 . . . . . . . . . . . . Hauler Manifests 2 | . 1 . . . . . . 1 . . . . . . . . . . . . . . . . . . Registered Components 1 | . . . . . . . . . . . . . . . . . . . . . . . 1 . . . Zone Layout 1 | . . . . . . . . . . . . . . . . . . . . . . . 1 . . . EX-Prototype ID Bank 1 | . . . 1 . . . . . . . . . . . . . . . . . . . . . . . Fabricator Hacks 2 | . . . . . . . . . . . . . 1 . . . . . . . . . . . . 1 Load Schematic 1 | . . . . . . . . . . . . . 1 . . . . . . . . . . . . . Build 1 | . . . . . . . . . . . . . . . . . . . . . . . . . . 1 Repair Station Hacks 20 | . . . . . 2 . . 2 . . . . 6 1 . . . 5 . . . . 2 . 2 . Scan Component 13 | . . . . . 1 . . 1 . . . . 4 1 . . . 3 . . . . 2 . 1 . Repair 7 | . . . . . 1 . . 1 . . . . 2 . . . . 2 . . . . . . 1 . Recycling Unit Hacks 5 | . . . . . . . . . . . . . . 1 . . . . . . . . . . . 4 Recycle Component 1 | . . . . . . . . . . . . . . . . . . . . . . . . . . 1 Process 1 | . . . . . . . . . . . . . . . . . . . . . . . . . . 1 Retrieve Matter 2 | . . . . . . . . . . . . . . . . . . . . . . . . . . 2 Retrieve Components 1 | . . . . . . . . . . . . . . 1 . . . . . . . . . . . . Scanalyzer . | . . . . . . . . . . . . . . . . . . . . . . . . . . . Garrison Access Hacks 6 | . . . . . . . . 1 . . . . 2 . . . . 1 . . . . . . . 2 Seal Access 6 | . . . . . . . . 1 . . . . 2 . . . . 1 . . . . . . . 2 Unauthorized Hacks 21 | . 1 . . . 1 1 . 2 . . . . 1 5 . . . 2 . . . . 2 . 2 4 Terminals 20 | . 1 . . . 1 1 . 2 . . . . 1 5 . . . 1 . . . . 2 . 2 4 Assimilate 5 | . . . . . 1 . . . . . . . . 2 . . . . . . . . . . . 2 Botnet 15 | . 1 . . . . 1 . 2 . . . . 1 3 . . . 1 . . . . 2 . 2 2 Fabricators . | . . . . . . . . . . . . . . . . . . . . . . . . . . . Repair Stations . | . . . . . . . . . . . . . . . . . . . . . . . . . . . Recycling Units . | . . . . . . . . . . . . . . . . . . . . . . . . . . . Scanalyzers . | . . . . . . . . . . . . . . . . . . . . . . . . . . . Garrison Access 1 | . . . . . . . . . . . . . . . . . . 1 . . . . . . . . Jam 1 | . . . . . . . . . . . . . . . . . . 1 . . . . . . . . Data Cores Recovered . | . . . . . . . . . . . . . . . . . . . . . . . . . . . Used . | . . . . . . . . . . . . . . . . . . . . . . . . . . . Hacking Detections 73 | . 7 . . . 7 2 . 5 1 . . . 13 15 . . 4 8 . . . . 5 . 4 2 Full Trace Events 7 | . 1 . . . . . . . 1 . . . . 3 . . . 2 . . . . . . . . Feedback Events . | . . . . . . . . . . . . . . . . . . . . . . . . . . . Feedback Blocked . | . . . . . . . . . . . . . . . . . . . . . . . . . . . Robot Schematics Acquired 3 | . . . . . . . . . . . 3 . . . . . . . . . . . . . . . Robots Built . | . . . . . . . . . . . . . . . . . . . . . . . . . . . Authchips . | . . . . . . . . . . . . . . . . . . . . . . . . . . . Time . | . . . . . . . . . . . . . . . . . . . . . . . . . . . Total Robot Build Rating . | . . . . . . . . . . . . . . . . . . . . . . . . . . . Part Schematics Acquired 27 | . . . . . . . . . . . 21 . . 2 . . . . . . 4 . . . . . Parts Built 1 | . . . . . . . . . . . . . . . . . . . . . . . . . . 1 Authchips . | . . . . . . . . . . . . . . . . . . . . . . . . . . . Time 46 | . . . . . . . . . . . . . . . . . . . . . . . . . . 46 Total Part Build Rating 9 | . . . . . . . . . . . . . . . . . . . . . . . . . . 9 Parts Repaired 7 | . . . . . 1 . . 1 . . . . 2 . . . . 2 . . . . . . 1 . Time 359 | . . . . . 53 . . 28 . . . . 76 . . . . 158 . . . . . . 44 . Parts Recycled 1 | . . . . . . . . . . . . . . . . . . . . . . . . . . 1 Recycled Matter 153 | . . . . . . . . . . . . . . . . . . . . . . . . . . 153 Retrieved Matter 153 | . . . . . . . . . . . . . . . . . . . . . . . . . . 153 Retrieved Components 10 | . . . . . . . . . . . . . . 10 . . . . . . . . . . . . Parts Scanalyzed . | . . . . . . . . . . . . . . . . . . . . . . . . . . . Part Schematics Acquired . | . . . . . . . . . . . . . . . . . . . . . . . . . . . Parts Damaged . | . . . . . . . . . . . . . . . . . . . . . . . . . . . Bothacking | -11 -10 -10 -10 -9 -8 -7 -7 -7 -7 -7 -7 -6 -6 -6 -6 -6 -6 -5 -5 -5 -5 -4 -4 -4 -4 -3 ------------ Run | Jun Mat Min Exi Min Mat Fac Was Fac Low Low Zio Pro Fac Ext Cet Arc Hub Fac Upp Upp Zhi Pro Fac Was Fac Res Used RIF Installer . | . . . . . . . . . . . . . . . . . . . . . . . . . . . Robots Hacked . | . . . . . . . . . . . . . . . . . . . . . . . . . . . Non-combat . | . . . . . . . . . . . . . . . . . . . . . . . . . . . Combat . | . . . . . . . . . . . . . . . . . . . . . . . . . . . Robot Hacks Applied . | . . . . . . . . . . . . . . . . . . . . . . . . . . . Relay Couplers Released 2 | . . . . . . . . . . . . . . . . . . 2 . . . . . . . . Machine Destruction 2 | . . . . . . . . . . . . . . . . . . 2 . . . . . . . . Fabnet Peak Effective % . | . . . . . . . . . . . . . . . . . . . . . . . . . . . Robots Rewired 9 | . . . . . . . . . . . . 2 . 7 . . . . . . . . . . . . Allies Hacked . | . . . . . . . . . . . . . . . . . . . . . . . . . . . Hacks Repelled . | . . . . . . . . . . . . . . . . . . . . . . . . . . . Allies | -11 -10 -10 -10 -9 -8 -7 -7 -7 -7 -7 -7 -6 -6 -6 -6 -6 -6 -5 -5 -5 -5 -4 -4 -4 -4 -3 -------- Run | Jun Mat Min Exi Min Mat Fac Was Fac Low Low Zio Pro Fac Ext Cet Arc Hub Fac Upp Upp Zhi Pro Fac Was Fac Res Total Allies 53 | . . 2 . 3 1 . 19 . . . . 2 . 18 . . . 4 . . . . 3 . . 1 Largest Group 18 | . . 2 . 3 2 . 18 11 3 3 2 2 . 11 11 1 . 3 . . . . 3 . . 1 Highest-Rated Group 434 | . . 38 . 40 32 . 434 316 78 78 48 58 . 408 408 145 . 106 . . . . 138 . . 45 Highest-Rated Ally 159 | . . 31 . 16 16 . 35 35 30 30 24 29 . 159 159 145 . 85 . . . . 46 . . 45 Total Orders 5 | . . . . . . . . . . . . . . 1 4 . . . . . . . . . . . STAY 4 | . . . . . . . . . . . . . . 1 3 . . . . . . . . . . . FOLLOW 1 | . . . . . . . . . . . . . . . 1 . . . . . . . . . . . Ally Attacks 505 | . . 18 . 6 34 . 91 195 . . . 33 . 30 39 1 . 32 . . . . 26 . . . Total Damage 12626 | . . 166 . 73 402 . 4170 3611 . . . 457 . 1225 1223 23 . 866 . . . . 410 . . . Kills 76 | . . 2 . 2 5 . 13 29 . . . 1 . 9 6 . . 4 . . . . 5 . . . Allies Corrupted . | . . . . . . . . . . . . . . . . . . . . . . . . . . . Allies Melted 1 | . . . . . . . . . . . . . . 1 . . . . . . . . . . . . Field Lobotomies 5 | . . . . . . . . . . . . . . 1 . . . 4 . . . . . . . . Intel | -11 -10 -10 -10 -9 -8 -7 -7 -7 -7 -7 -7 -6 -6 -6 -6 -6 -6 -5 -5 -5 -5 -4 -4 -4 -4 -3 ------- Run | Jun Mat Min Exi Min Mat Fac Was Fac Low Low Zio Pro Fac Ext Cet Arc Hub Fac Upp Upp Zhi Pro Fac Was Fac Res Robot Analysis Total 9 | . 1 . . . 1 . . 2 . . . . . 1 . . . . . . 4 . . . . . Derelict Logs Recovered 12 | . . 2 . 1 . . . . 1 1 1 2 . . . . . . 2 2 . . . . . . Drone Launches . | . . . . . . . . . . . . . . . . . . . . . . . . . . . Drone Recoveries . | . . . . . . . . . . . . . . . . . . . . . . . . . . . Exploration | -11 -10 -10 -10 -9 -8 -7 -7 -7 -7 -7 -7 -6 -6 -6 -6 -6 -6 -5 -5 -5 -5 -4 -4 -4 -4 -3 ------------- Run | Jun Mat Min Exi Min Mat Fac Was Fac Low Low Zio Pro Fac Ext Cet Arc Hub Fac Upp Upp Zhi Pro Fac Was Fac Res Turns Passed 35122 | 137 1598 1831 458 300 2062 124 515 2500 1328 745 2070 873 3346 4697 509 1285 424 4381 1086 349 216 488 1976 25 1107 692 Spaces Moved 20429 | 120 959 495 416 264 955 76 417 1402 728 436 1282 461 1690 1751 222 368 141 1730 415 309 212 320 1509 75 2155 1521 Core 537 | 15 . . . . . . 149 . . . . . . . . . . . . 253 115 . . . . 5 Treads 11908 | . . . . . 923 76 198 1402 728 436 1282 461 1690 1751 222 368 141 1730 415 56 . 24 . . . 5 Legs 903 | . . . . . . . . . . . . . . . . . . . . . 97 296 510 . . . Wheels 2455 | 105 959 495 416 264 32 . . . . . . . . . . . . . . . . . 184 . . . Hover 1895 | . . . . . . . . . . . . . . . . . . . . . . . 815 75 1005 . Flight 2731 | . . . . . . . 70 . . . . . . . . . . . . . . . . . 1150 1511 Fastest Speed 20 | 50 80 110 110 110 110 158 32 155 155 158 158 156 156 164 155 155 160 160 240 50 50 120 20 23 20 25 Average Speed 132 | 76 135 113 110 110 159 158 99 157 156 158 158 156 158 236 180 230 201 179 240 87 82 129 71 30 26 29 Slowest Speed 320 | 80 155 155 110 110 245 158 245 235 158 158 158 158 164 244 237 240 240 240 240 320 120 240 190 33 34 170 Overloaded Moves 19 | . . . . . . . . . . . . . . . . . . . . . . . . . . 19 Propulsion Burnouts . | . . . . . . . . . . . . . . . . . . . . . . . . . . . Robots Hopped 4 | . . . . . . . . . . . . . . . . . . . . . . . . . 1 3 Cave-ins Triggered . | . . . . . . . . . . . . . . . . . . . . . . . . . . . Teleports 1 | . . . . . . . . . . . . . . . . . . . . . . . 1 . . . Exploration Rate (%) 60 | 5 98 96 90 66 66 2 97 40 89 64 87 59 41 96 67 100 24 44 59 48 62 42 28 68 47 45 Regions Visited 26 Branch Regions 15 Pre-discovered Areas 7 | . . . 1 1 . . . . . . . . . . . . . . 1 1 3 . . . . . Known Exits Taken 9 | . . . . . . . . 1 . . . . 1 . . . 1 1 1 1 1 1 . . 1 . Unknown Exits Taken 13 | 1 1 1 1 1 1 . . . 1 1 1 1 . 1 1 1 . . . . . . . . . . Scrap Searched 17 | . . 2 . 1 . . . . 2 1 4 3 . . . . . . 2 2 . . . . . . Spaces Dug 126 | . . 1 . . . . . . . 1 . . 8 . . . . 17 3 13 . . 16 . 11 56 Terrain Destroyed 701 | . . 29 . . 10 . . . 11 4 . 41 18 33 8 25 21 161 125 30 . . 17 . 93 75 Melee 30 | . . . . . . . . . . . . . . . . . . . . . . . 16 . 11 3 Projectile 169 | . . 1 . . . . . . 3 4 . 3 18 27 . 25 4 67 7 9 . . 1 . . . AOE 502 | . . 28 . . 10 . . . 8 . . 38 . 6 8 . 17 94 118 21 . . . . 82 72 Terrain Rammed . | . . . . . . . . . . . . . . . . . . . . . . . . . . . Walls Destroyed . | . . . . . . . . . . . . . . . . . . . . . . . . . . . Machines Disabled . | . . . . . . . . . . . . . . . . . . . . . . . . . . . Actions | -11 -10 -10 -10 -9 -8 -7 -7 -7 -7 -7 -7 -6 -6 -6 -6 -6 -6 -5 -5 -5 -5 -4 -4 -4 -4 -3 --------- Run | Jun Mat Min Exi Min Mat Fac Was Fac Low Low Zio Pro Fac Ext Cet Arc Hub Fac Upp Upp Zhi Pro Fac Was Fac Res Total 26612 | 146 1146 1725 417 273 1328 81 525 1597 813 458 1318 562 2178 2070 293 680 254 2585 465 359 239 372 2261 76 2651 1740 Wait 3799 | 1 71 1198 . 4 177 . 34 73 9 2 20 11 314 36 3 207 87 458 16 11 . 33 558 2 332 142 Move 20397 | 119 958 494 415 263 954 76 416 1401 727 435 1281 460 1689 1750 221 367 140 1729 414 308 211 319 1509 74 2152 1515 Hop 4 | . . . . . . . . . . . . . . . . . . . . . . . . . 1 3 Pick Up 225 | 6 25 2 1 2 20 1 27 15 . 1 2 4 14 20 3 10 1 28 2 6 1 . 17 . 7 10 Fast Attach 206 | 7 4 . . . 12 . 16 9 1 2 3 5 10 5 9 11 . 19 1 3 14 2 35 . 22 16 Attach 100 | . 1 . . . 4 1 3 1 1 . . 1 3 15 3 4 . 28 4 3 . 1 7 . 7 13 Detach 52 | 1 . . . . 2 . 1 1 . . 1 1 2 11 10 2 . 6 . . . 1 2 . 6 5 Swap 211 | . 4 7 . 2 20 2 3 9 6 1 1 8 17 26 5 1 12 54 10 1 1 . 8 . 10 3 Drop 317 | 2 13 4 1 2 39 1 25 29 2 . 2 11 25 15 14 14 1 26 . 9 5 1 33 . 31 12 Fire 972 | 10 70 20 . . 95 . . 59 67 17 8 30 102 122 22 64 11 208 17 18 . . 20 . 6 6 Melee 175 | . . . . . . . . . . . . . . 12 3 . . 10 . . 7 15 72 . 41 15 Ram 1 | . . . . . . . . . . . . . . . . . . 1 . . . . . . . . Kick . | . . . . . . . . . . . . . . . . . . . . . . . . . . . Crush 32 | . . . . . 5 . . . . . . . 2 4 . . 2 18 1 . . . . . . . Escape Stasis 46 | . . . . . . . . . . . . . . 10 . . . . . . . . . . 36 . Rewire 75 | . . . . . . . . . . . . 31 . 44 . . . . . . . . . . . . Trap . | . . . . . . . . . . . . . . . . . . . . . . . . . . . Miscellaneous . | . . . . . . . . . . . . . . . . . . . . . . . . . . . Route ------- -11/Junkyard -10/Materials (discovered 4 exits: *Mat x3 / [*Min]) -10/Mines (discovered 3 exits: *Mat x2 / *Exi) -10/Exiles (discovered 2 exits: [*Min x2]) -9/Mines -8/Materials -7/Factory -7/Waste -7/Factory (discovered 4 exits: *Fac / [*Sto] / *Low x2) -7/Lower Caves -7/Lower Caves (discovered 2 exits: *Fac / *Zio) -7/Zion -6/Proximity Caves -6/Factory (discovered 2 exits: Fac / *Ext) -6/Extension (discovered 2 exits: *Fac / *Cet) -6/Cetus -6/Archives (discovered 3 exits: *Fac / *Hub x2) -6/Hub_04(d) (discovered 4 exits: *Fac x4) -5/Factory (discovered 3 exits: *Fac / *Upp x2) -5/Upper Caves -5/Upper Caves -5/Zhirov -4/Proximity Caves -4/Factory (discovered 3 exits: Upp x2 / Arm) -4/Waste -4/Factory (discovered 2 exits: *Res x2) -3/Research (discovered 2 exits: *Qua x2) History --------- Turn | Location | Event 2 | -11/Junkyard | Met Revision 17 103 | -11/Junkyard | Discovered new exit (range 8) 138 | -11/Junkyard | Entered Materials 235 | -10/Materials | Discovered new exit (range 10) 300 | -10/Materials | Build established: Mutant 406 | -10/Materials | Discovered new exit (range 10) 704 | -10/Materials | Discovered new exit (range 3) 887 | -10/Materials | Discovered new exit (range 7) 1229 | -10/Materials | Central database locked down 1736 | -10/Materials | Entered Mines 1771 | -10/Mines | Received a Rocket Launcher from a helpful Derelict 1792 | -10/Mines | Assembled infested the area 3221 | -10/Mines | Identified exit to Materials 3231 | -10/Mines | Deemed a non-threat by the Exiles lab entrance 3231 | -10/Mines | Discovered new exit (range 5) 3567 | -10/Mines | Entered Exiles 3582 | -10/Exiles | Discovered new exit (range 15) 3595 | -10/Exiles | Met 8R-AWN 3613 | -10/Exiles | Met EX-HEX 3665 | -10/Exiles | Met EX-DEC 3698 | -10/Exiles | Visited The Gauntlet 3827 | -10/Exiles | Learned location of Zion (-7) 3862 | -10/Exiles | Met EX-BIN 3878 | -10/Exiles | Aligned with FarCom system 3879 | -10/Exiles | Given EX-Vault access code 3907 | -10/Exiles | Opened EX-Vault 3916 | -10/Exiles | Found Field Lobotomy Kit 3939 | -10/Exiles | Warned to stay clear of 0b10 Research branches 4017 | -10/Exiles | Discovered new exit (range 10) 4025 | -10/Exiles | Left Exiles lab with Field Lobotomy Kit 4025 | -10/Exiles | Entered Mines 4027 | -9/Mines | Assisted by bots powering up and referring to "LRC-V3" 4200 | -9/Mines | A weapon hastily lodged in a ceiling crevice suddenly fell to the ground 4314 | -9/Mines | Discovered new exit (range 6) 4325 | -9/Mines | Entered Materials 4325 | -8/Materials | Accompanied by 2 allies 4325 | -8/Materials | Evolved 4 slots: Propulsion x2, Utility x2 4660 | -8/Materials | Build established: Scavenger-Mutant 5667 | -8/Materials | Repaired Broken Arm. Treads 6097 | -8/Materials | Build established: Mutant 6338 | -8/Materials | Discovered new exit (range 4) 6387 | -8/Materials | Entered Factory 6387 | -7/Factory | Evolved 2 slots: Power x1, Utility x1 6391 | -7/Factory | Identified exit to DSF 6511 | -7/Factory | Sucked down chute 6511 | -7/Factory | Entered Waste 6511 | -7/Waste | Released all parts (12) 6512 | -7/Waste | Met a frightened Derelict 6524 | -7/Waste | Spotted C-40 Crusher 6530 | -7/Waste | Found Prototype Processor 6530 | -7/Waste | Identified Exp. Signal Interpreter 6537 | -7/Waste | Spotted C-40 Crusher 6558 | -7/Waste | Spotted C-40 Crusher 6559 | -7/Waste | Spotted C-40 Crusher 6560 | -7/Waste | Spotted C-40 Crusher 6567 | -7/Waste | Crushed by Compactor (1 part destroyed, 1 dropped) 6570 | -7/Waste | Spotted C-40 Crusher 6591 | -7/Waste | Warlord forces began an assault 6597 | -7/Waste | Allies destroyed C-40 Crusher 6599 | -7/Waste | Allies destroyed C-40 Crusher 6600 | -7/Waste | Allies destroyed C-40 Crusher 6604 | -7/Waste | Allies destroyed C-40 Crusher 6609 | -7/Waste | Allies destroyed C-40 Crusher 6622 | -7/Waste | Allies destroyed C-40 Crusher 7001 | -7/Waste | Discovered new exit (range 11) 7026 | -7/Waste | Entered Factory 7026 | -7/Factory | Accompanied by 11 allies 7260 | -7/Factory | Garrison activated, responded to threat 7601 | -7/Factory | Build established: Scavenger-Mutant 7859 | -7/Factory | Repaired Mass Driver 7985 | -7/Factory | Discovered new exit (range 17) 8262 | -7/Factory | Build established: Mutant 8573 | -7/Factory | Discovered new exit (range 20) 8728 | -7/Factory | P-60 Hacker assimilated allied UV-05F(g) 8784 | -7/Factory | Discovered new exit (range 11) 9264 | -7/Factory | Discovered new exit (range 5) 9525 | -7/Factory | Identified exit to Lower Caves 9526 | -7/Factory | Entered Lower Caves 9526 | -7/Lower Caves | Accompanied by 3 allies 9985 | -7/Lower Caves | Attracted the attention of an 0b10 base 10016 | -7/Lower Caves | Destroyed 12 combat bots 10041 | -7/Lower Caves | Learned location of 2 exits from Upper Caves 10041 | -7/Lower Caves | Learned 8 Research zone layouts 10041 | -7/Lower Caves | Learned Armory emergency access door positions 10382 | -7/Lower Caves | Learned Factory interactive machine intel 10423 | -7/Lower Caves | Spotted B-75 Beast 10463 | -7/Lower Caves | Destroyed B-75 Beast 10832 | -7/Lower Caves | Discovered new exit (range 11) 10854 | -7/Lower Caves | Entered another Lower Caves area 10854 | -7/Lower Caves | Accompanied by 3 allies 11001 | -7/Lower Caves | Learned location of 1 exit from Factory 11061 | -7/Lower Caves | Discovered new exit (range 5) 11438 | -7/Lower Caves | Discovered new exit (range 14) 11532 | -7/Lower Caves | Spotted B-75 Beast 11599 | -7/Lower Caves | Entered Zion 11599 | -7/Zion | Accompanied by 2 allies 11648 | -7/Zion | Discovered new exit (range 16) 11719 | -7/Zion | Found Prototype Device 11719 | -7/Zion | Identified Phasing AFG 11890 | -7/Zion | Visited the Megawrench Repair Shop 11890 | -7/Zion | Megawrench repaired 8 parts 13416 | -7/Zion | Rebuked by Imprinter 13669 | -7/Zion | Entered Proximity Caves 13669 | -6/Proximity Caves | Accompanied by 2 allies 13793 | -6/Proximity Caves | Attracted the attention of an 0b10 outpost 13810 | -6/Proximity Caves | Core integrity fell below 50% 13910 | -6/Proximity Caves | Destroyed 12 combat bots 13983 | -6/Proximity Caves | Spotted B-75 Beast 13999 | -6/Proximity Caves | Destroyed B-75 Beast 14099 | -6/Proximity Caves | Learned Factory stockpile data 14172 | -6/Proximity Caves | Learned Factory stockpile data 14258 | -6/Proximity Caves | Discovered new exit (range 13) 14442 | -6/Proximity Caves | Acquired the password to a Derelict Tinkerer's latest research 14451 | -6/Proximity Caves | Found Prototype Special Weapon 14451 | -6/Proximity Caves | Identified Molecular Deconstructor 14532 | -6/Proximity Caves | Caught by Unaware searching for contraband prototypes 14542 | -6/Proximity Caves | Entered Factory 14542 | -6/Factory | Evolved 2 slots: Propulsion x1, Utility x1 14543 | -6/Factory | Identified exit to Extension 14544 | -6/Factory | Identified exit to Factory 14546 | -6/Factory | Loaded intel: 53 interactive machine locations 14546 | -6/Factory | Identified exit to DSF 16108 | -6/Factory | Cargo convoy interrupted 16805 | -6/Factory | Repaired Arm. Treads? 16959 | -6/Factory | Repaired Adv. Treads 17888 | -6/Factory | Entered Extension 18069 | -6/Extension | System corruption reached 10% 18317 | -6/Extension | Build established: Hauler-Mutant 18519 | -6/Extension | Spotted B-75 Beast 18638 | -6/Extension | Disrupted transfer network 19056 | -6/Extension | Rescued a captive Derelict 19057 | -6/Extension | Rescued a captive Derelict 19189 | -6/Extension | Rescued a captive Derelict 19190 | -6/Extension | Rescued a captive Derelict 19871 | -6/Extension | Destroyed B-75 Beast 19884 | -6/Extension | Spotted B-75 Beast 19900 | -6/Extension | Assimilated B-75 Beast with FLK Orb 20721 | -6/Extension | Discovered new exit (range 20) 20724 | -6/Extension | Discovered exit to Factory (range 19) 21064 | -6/Extension | Rescued a captive Derelict 21469 | -6/Extension | Build established: Scavenger-Mutant 21775 | -6/Extension | Rescued A7 22119 | -6/Extension | Rescued a captive Derelict 22295 | -6/Extension | Rescued a captive Derelict 22298 | -6/Extension | Rescued a captive Derelict 22585 | -6/Extension | Entered Cetus 22585 | -6/Cetus | Accompanied by 11 allies (A7) 22590 | -6/Cetus | Acquired a Cetus Manufacturing Module code from A7 22607 | -6/Cetus | Spotted Cetus Guard 22609 | -6/Cetus | Spotted Cetus Guard 22611 | -6/Cetus | Spotted Cetus Guard 22612 | -6/Cetus | Spotted Cetus Guard 22632 | -6/Cetus | Allies destroyed Cetus Guard 22648 | -6/Cetus | Allies destroyed Cetus Guard 22653 | -6/Cetus | Destroyed Cetus Guard 22654 | -6/Cetus | Allies destroyed Cetus Guard 22711 | -6/Cetus | Cetus Manufacturing Module disabled 23023 | -6/Cetus | Escorted A7 to Cetus Mainframe 23062 | -6/Cetus | Discovered new exit (range 22) 23094 | -6/Cetus | Entered Archives 23094 | -6/Archives | Accompanied by 1 ally (A7) 23099 | -6/Archives | Received a hacking code to weaken MAIN.C 23212 | -6/Archives | Build established: Hauler-Mutant 23306 | -6/Archives | Discovered new exit (range 22) 23316 | -6/Archives | Discovered new exit (range 21) 23359 | -6/Archives | Unable to access archive contents 23383 | -6/Archives | Unable to access archive contents 23410 | -6/Archives | Unable to access archive contents 23419 | -6/Archives | Discovered exit to Factory (range 17) 23434 | -6/Archives | Unable to access archive contents 23747 | -6/Archives | Build established: Scavenger-Mutant 24379 | -6/Archives | Entered Hub_04(d) 24803 | -6/Hub_04(d) | Entered Factory 24803 | -5/Factory | Evolved 2 slots: Propulsion x1, Utility x1 24822 | -5/Factory | Spotted B-75 Beast 25001 | -5/Factory | Assimilated B-75 Beast with FLK Orb 25109 | -5/Factory | Found Hvy. Reflective Plating 25112 | -5/Factory | Found Hvy. Reflective Plating 25442 | -5/Factory | Identified exit to Upper Caves 25556 | -5/Factory | Discovered new exit (range 18) 26102 | -5/Factory | Garrison activated, responded to threat 26514 | -5/Factory | System corruption reached 10% 26725 | -5/Factory | Repaired Centrium Heavy Treads 27241 | -5/Factory | Repaired Imp. Heavy Armor Plating? 27944 | -5/Factory | Garrison activated, responded to threat 28403 | -5/Factory | First assault squad dispatched 28878 | -5/Factory | Lost 5 parts (1n3u1w) 28894 | -5/Factory | Assimilated G-67 Veteran with FLK Orb 28897 | -5/Factory | Assimilated B-60 Warrior with FLK Orb 28900 | -5/Factory | Assimilated G-50 Soldier with FLK Orb 28929 | -5/Factory | Lost 3 parts (2n1u) 29184 | -5/Factory | Entered Upper Caves 29185 | -5/Upper Caves | Identified exit to Upper Caves 29244 | -5/Upper Caves | Lost 5 parts (1p3n1u) 29329 | -5/Upper Caves | Learned location of Warlord (-4) 29799 | -5/Upper Caves | Learned 4 Factory zone layouts 30270 | -5/Upper Caves | Entered another Upper Caves area 30271 | -5/Upper Caves | Identified exit to Zhirov 30367 | -5/Upper Caves | Learned Factory non-interactive machine intel 30369 | -5/Upper Caves | Spotted B-75 Beast 30397 | -5/Upper Caves | Destroyed B-75 Beast 30466 | -5/Upper Caves | System corruption reached 30% 30484 | -5/Upper Caves | Lost 3 parts (1p1n1u) 30500 | -5/Upper Caves | Core integrity fell below 50% 30619 | -5/Upper Caves | Entered Zhirov 30619 | -5/Zhirov | Discovered new exit (range 3) 30629 | -5/Zhirov | Met Zhirov 30638 | -5/Zhirov | Learned location of Quarantine (-3) 30638 | -5/Zhirov | Learned location of Testing (-2) 30638 | -5/Zhirov | Learned location of Command (-1) 30649 | -5/Zhirov | Zhirov requested help retrieving the SGEMP Prototype 30660 | -5/Zhirov | Found Alien Artifact 30668 | -5/Zhirov | Found Alien Artifact 30668 | -5/Zhirov | Identified Integrated Reactor 30668 | -5/Zhirov | Installed Integrated Reactor, increased core energy generation (+10) 30834 | -5/Zhirov | Identified exit to Proximity Caves 30835 | -5/Zhirov | Entered Proximity Caves 30838 | -4/Proximity Caves | Spotter reported a threat 30968 | -4/Proximity Caves | Build established: Hacker-Mutant 31279 | -4/Proximity Caves | Discovered new exit (range 11) 31300 | -4/Proximity Caves | Identified exit to Factory 31323 | -4/Proximity Caves | Entered Factory 31323 | -4/Factory | Evolved 2 slots: Utility x2 31325 | -4/Factory | Loaded intel: 201 non-interactive machine locations 31326 | -4/Factory | Identified exit to DSF 31536 | -4/Factory | Identified exit to Upper Caves 31536 | -4/Factory | Identified exit to Armory 31661 | -4/Factory | Identified Transdimensional Reconstructor 31661 | -4/Factory | Warped through subspace 31721 | -4/Factory | Found Unknown Device 31721 | -4/Factory | Identified Quantum Capacitor 32264 | -4/Factory | Build established: Scavenger-Assassin 32478 | -4/Factory | Lost 3 parts (1p2u) 32707 | -4/Factory | Allied Derelicts emerged from ambush trap array 32907 | -4/Factory | Build established: Hacker-Sprinter 33299 | -4/Factory | Sucked down chute 33299 | -4/Factory | Entered Waste 33310 | -4/Waste | Spotted C-40 Crusher 33311 | -4/Waste | Spotted C-40 Crusher 33311 | -4/Waste | Spotted C-40 Crusher 33314 | -4/Waste | EMP discharged 33316 | -4/Waste | Spotted C-40 Crusher 33319 | -4/Waste | Spotted C-40 Crusher 33320 | -4/Waste | Discovered new exit (range 11) 33324 | -4/Waste | Identified exit to Factory 33324 | -4/Waste | Entered Factory 33522 | -4/Factory | Discovered new exit (range 9) 33564 | -4/Factory | Build established: Scavenger-Sprinter 33589 | -4/Factory | Identified exit to Research 33887 | -4/Factory | Build established: Hacker-Sprinter 34010 | -4/Factory | Discovered exit to Research (range 4) 34074 | -4/Factory | First assault squad dispatched 34101 | -4/Factory | Repaired Lyr. Light Armor Plating 34229 | -4/Factory | System corruption reached 10% 34431 | -4/Factory | Entered Research 34431 | -3/Research | Evolved 2 slots: Utility x2 34581 | -3/Research | Fabricated Enh. Nova Cannon (x1) 34644 | -3/Research | Identified exit to Quarantine 34863 | -3/Research | Found Exp. System Shield 34988 | -3/Research | System corruption reached 10% 34999 | -3/Research | Core integrity fell below 50% 35005 | -3/Research | Destroyed 8 combat bots 35029 | -3/Research | Lost 18 parts (2p9n4u3w) 35040 | -3/Research | Spotted B-86 Titan 35041 | -3/Research | Spotted B-86 Titan 35090 | -3/Research | Core integrity fell below 20% 35121 | -3/Research | Released all parts (7) 35123 | -3/Research | Destroyed by H-77 Assassin with High-powered Shotgun Last Messages --------------- 35115_ Penetrated by Slug. 35115_ Slug penetrates Wall. 35117_ M-36 Artificer repairs G-73 Enforcer. 35117_ Exp. System Shield destroyed. 35118_ G-73 Enforcer core entropy levels peaking. 35119_ Slug penetrates Wall. 35120_ Ended siege mode. 35120_ Dropped Arm. Heavy Treads. 35121_ Released Arm. Heavy Treads. 35121_ Released Graphene Brace. 35121_ Released Imp. Signal Interpreter. 35121_ Released Adv. Coolant Injector. 35121_ Released Adv. System Shield. 35121_ Released Phasing AFG. 35121_ Slug penetrates Wall. 35121_ Penetrated by Slug. 35122_ Slug penetrates Wave Intensifier. 35123_ Slug penetrates H-77 Assassin. [Achievement: First Step to Greatness] [Achievement: Just Browsing] Map ----- +----------------------------------------------------+ | ??????????????????????????????????# ! # #? | | ??????????????????????????????????# # #? | | ??????????????????????????????????# # #? | | ??????????????????????????????############## #? | | ??????????????????????????????# # #? | | ???????????????????????????????? # #? | | ?????????????????????????????????? # #? | | ????????????????????????????????????[ # #? | | ????????????????????????????????????? # #? | | ???????????????#########################+### ## | | ???????????????# """ | | ???????????????# "T" * | | ??????########## " " = | | ??????# !|| # / | | ??????# !| # ####+############ | | ??????# !| # # ## | | ??????# # # ## | | ??????# + " !* ## | | ??????# # # !* / ## | | ??????# # # / ## | | ??????# / # = ! ## """ | | ??????# ## ######+################### """ | | ??????#####/##### # """ = #??????????BB """ | | ??????????# #???# # "Y"h #??????????BB | | ??????????# #???# # " "h o #??????????## ?? | | ??????????# #??## # @""" #???????????# ?? | | ?######?### #### # """ #???????????# ?? | | ?# # !# !gm Y """ #?????????????????? | | ?#= # !%g! """ #?????????????????? | | ?# + g|p!= #?????????????????? | | ?# # p=== """ #?????????????????? | | ?# # # g!=! "" #?????????????????? | | ?# ?######### # #?????????????????? | | ?######?????????#?# #?????????????????? | | ??????????????????##### ########?????????????????? | | ??????????????????????###????????????????????????? | | ?????????????????????????????????????????????????? | | ?????????????????????????????????????????????????? | | ?????????????????????????????????????????????????? | | ?????????????????????????????????????????????????? | | ?????????????????????????????????????????????????? | | ?????????????????????????????????????????????????? | | | | | | | | | | | | | | | | | +----------------------------------------------------+ Best States ------------- Heat Dissipation 74 Coolant Potential 100 Energy Generation 53 Energy Capacity 560 Matter Stores 300 Matter Capacity 600 Sight Range 22 Robot Scan Range 16 Terrain Scan Range 16 Terrain Scan Density 110 Corruption Containment 16 Armor Coverage 2100 Resistance: KI 30 Resistance: TH 25 Core Shielding 20 Utility Shielding 90 Weapon Cycling 15 Melee Speed Boost 30 Evasion (%) 65 Targeting Accuracy 6 Target Analysis 6 Recoil Reduction 6 Matter Filtering 50 Offensive Hacking 24 Defensive Hacking 58 Item Schematics ----------------- Adv. Shield Generator | -7/Zion | Archive Mak. Laser | -7/Zion | Archive Hpw. Shock Rifle | -7/Zion | Archive Proton Missile Launcher | -7/Zion | Archive Adv. Heat Sink | -7/Zion | Archive Mak. Terrain Scan Processor | -7/Zion | Archive 0b10 Decoder Chip [Generic] | -7/Zion | Archive Recalibrator | -7/Zion | Archive Proton Cannon | -7/Zion | Archive Power Maul | -7/Zion | Archive Tesla Rifle | -7/Zion | Archive Imp. Particle Charger | -7/Zion | Archive Hrd. Heavy Armor Plating | -7/Zion | Archive Adv. Assault Cannon | -7/Zion | Archive Hvy. Flak Cannon | -7/Zion | Archive Hvy. Mass Driver | -7/Zion | Archive Beamcaster | -7/Zion | Free Riot Gun | -7/Zion | Free Battle Cannon | -7/Zion | Free Slug Cannon | -7/Zion | Free Ripper | -7/Zion | Free Adv. Transmission Jammer | -6/Extension | Hacked Cmb. Airjet | -6/Extension | Hacked Assault Drone Bay | -5/Zhirov | Free Exp. Heat Sink | -5/Zhirov | Free Exp. Optical Array | -5/Zhirov | Free Imp. Arc Thrower | -5/Zhirov | Free Robot Schematics ------------------ O-24 Administrator | -7/Zion | Archive S-27 Virus | -7/Zion | Archive B-48 Gladiator | -7/Zion | Archive Fabricated ------------ Enh. Nova Cannon | x1 | -3/Research | Preloaded Alien Tech Used ----------------- Integrated Reactor Transdimensional Reconstructor Achievements -------------- Below First Step to Greatness Generalissimo Hunted Just Browsing Main Advantage Omniscient Cartographer Prison Break Quick And Dirty Robot Respite Tank Turtlemind Challenges ------------ None Game ------ Seed ImpulseDecoderRedirector Manual? 0 Play Time 07:44:15 Cumulative 36.6 hours Start 2023.09.03 @ 14:56:34 End 2023.09.08 @ 00:24:26 Sessions 25 Manual Loads 0 Difficulty Rogue Special Mode None Game No. 3 Rogue 3 Adventurer 0 Explorer 0 Win Type - Total 2 Types 2/0/0/0/0/0/0/0/0 Lore% 33 Gallery% 29 Achievement% 35 Wizard Run 0 Options --------- ASCII 0 Keyboard 0 Movement Vi Keybinds 0 Fullscreen 1 Font 16/Terminus Map View 64x51 Tactical HUD 1 Map Filters NONE Filters NONE Steam 0 RUN: 436ee735-5b7a-4c04-abd9-a6da611f7aaf